[Event "Icelandic Championship 2022"]
[Site "Selfoss"]
[Date "2022.04.24"]
[Round "4.1"]
[White "Thorfinnsson, Bragi"]
[Black "Steingrimsson, Hedinn"]
[Result "1/2-1/2"]
[ECO "B90"]
[WhiteElo "2419"]
[BlackElo "2538"]
[Annotator "TA"]
[PlyCount "103"]
[EventDate "2022.04.21"]
[EventType "tourn"]
[EventCountry "ISL"]
[SourceTitle "playchess.com"]
[Source "ChessBase"]
[SourceQuality "1"]
[TimeControl "40/5400+30:1800+30"]

{[%evp 17,103,0,4,4,0,31,37,38,29,42,39,44,101,91,84,8,55,0,51,-11,73,81,73,72,69,60,64,33,27,10,10,16,18,18,8,6,9,16,100,100,100,100,286,286,666,660,595,596,552,380,441,400,391,380,376,353,480,458,420,0,0,0,0,0,0,0,0,0,0,0,0,0,0,0,0,0,0,0,0,0,0,0,0,0,0,0,0,0]} 1. e4 {[%emt 0:00:04]} c5 {[%emt 0:04:51]} 2. Nf3 {[%emt 0:00:15]} d6 {[%emt 0:00:04]} 3. d4 {[%emt 0:00:09]} cxd4 {[%emt 0:00:07]} 4. Nxd4 {[%emt 0:00:06]} Nf6 {[%emt 0:00:05]} 5. Nc3 {[%emt 0:00:09]} a6 {[%emt 0:00:03]} 6. Bd3 {[%emt 0:01:03]} e5 {[%emt 0:05:26]} 7. Nde2 {[%emt 0:00:09]} Be7 {[%emt 0:00:20]} 8. O-O {[%emt 0:00:14]} O-O {[%emt 0:00:04]} 9. Ng3 {[%emt 0:00:23]} Nc6 {[%emt 0:13:06]} 10. Nd5 {[%emt 0:04:07] B90: Sicilian Najdorf: Unusual White 6th moves, 6 Be3 Ng4 and 6 Be3 e5.} Nxd5 {[%emt 0:03:28]} 11. exd5 {[%emt 0:00:06]} Nb4 {[%emt 0:00:17]} 12. Bf5 {[%emt 0:02:23] White is slightly better.} a5 $1 {[%emt 0:01:39]} 13. c3 {[%emt 0:08:26]} Na6 {[%emt 0:00:03]} 14. f4 {[%emt 0:00:30] [#]} Nc5 $146 {[%emt 0:08:26]} (14... Bh4 $14) ({Predecessor:} 14... Bf6 15. Kh1 Nc5 16. Be3 b6 17. Bxc8 Rxc8 18. Bxc5 bxc5 19. f5 e4 20. Nxe4 Re8 {1-0 (82) Arjun,K (2503)-Spitzl,V (2346) Riga 2021}) 15. fxe5 {[%emt 0:06:56]} dxe5 {[%emt 0:00:05]} 16. Qg4 {[%emt 0:00:09]} (16. Bxc8 $1 $16 {aiming for Bh3.} Rxc8 17. Nf5) 16... Ra6 {[%emt 0:10:19]} (16... Kh8 $11) 17. Be3 {[%emt 0:16:43]} (17. Bxc8 $14 Rg6 18. Qc4 Qxc8 19. Nf5) 17... Rg6 {[%emt 0:02:56]} (17... g6 $1 $11) 18. Qc4 {[%emt 0:02:51] [#]} ({Better is} 18. Qh5 $14) 18... Bxf5 {[%emt 0:02:29]} (18... b5 $1 $11 {keeps the balance.} 19. Qe2 (19. Qxb5 $2 Ba6 $19) 19... Qxd5) 19. Nxf5 $16 {[%emt 0:02:23]} b6 {[%emt 0:02:40]} 20. b4 {[%emt 0:06:13]} axb4 {[%emt 0:08:01]} 21. cxb4 {[%emt 0:00:08]} Nb7 {[%emt 0:00:01]} 22. a4 {[%emt 0:03:33][%cal Oa4a5]} Bg5 {[%emt 0:17:20]} 23. Bxg5 {[%emt 0:06:57]} Qxg5 {[%emt 0:00:04][%csl Gg6][%cal Rg5g2]} 24. Qe4 {[%emt 0:00:11] Active counter play!} Nd6 {[%emt 0:06:05]} 25. Nxd6 {[%emt 0:05:16]} Rxd6 {[%emt 0:00:01]} 26. Rf5 {[%emt 0:00:27][%cal Bf1f5,Bf5e5,Be5e8][%mdl 32]} Qd2 {[%emt 0:00:19]} 27. Rxe5 {[%emt 0:01:10]} Rf6 {[%emt 0:01:23] [#]} (27... Rg6 $11 28. Kh1 f5) 28. Qe1 $1 $36 {[%emt 0:02:11][%mdl 2048] White is really pushing.} ({Much worse is} 28. Kh1 $6 Rf4 29. Qe1 Qxb4 $11) 28... Qd4+ {[%emt 0:00:45]} 29. Kh1 {[%emt 0:00:14] Black must now prevent Rd1.} Rf4 $2 {[%emt 0:00:28]} (29... Rf2 $16) 30. a5 $18 {[%emt 0:09:58][%cal Ba4a5,Ba5a6,Ba6a7][%mdl 32]} f6 $2 {[%emt 0:03:37]} (30... bxa5 31. bxa5 Rf1+ 32. Qxf1 Qxe5) 31. Re8 {[%emt 0:01:09]} Rf1+ {[%emt 0:00:38]} 32. Qxf1 {[%emt 0:00:31]} Rxe8 {[%emt 0:00:00][%mdl 4096] Endgame KQR-KQR} 33. a6 {[%emt 0:03:59] Threatens to win with Qd1.} Qxb4 {[%emt 0:02:36]} 34. a7 {[%emt 0:01:46]} Ra8 {[%emt 0:00:01]} 35. Qa6 {[%emt 0:02:16] And now Qb7 would win.} Qd4 {[%emt 0:05:09]} 36. h3 {[%emt 0:00:38]} h6 {[%emt 0:03:40]} 37. Rc1 {[%emt 0:01:17] Rc8+ is the strong threat.} Qxd5 {[%emt 0:01:08]} 38. Rc8+ $2 {[%emt 0:00:25]} ({White has to play} 38. Qxb6 $18 Qe5 39. Qb7) 38... Kh7 $1 $11 {[%emt 0:00:15] The position is equal.} 39. Rxa8 {[%emt 0:00:12]} Qd1+ $1 {[%emt 0:00:17]} 40. Kh2 {[%emt 0:00:15][%cal Oa8h8] White threatens Rh8+! and mate.} Qd6+ {[%emt 0:00:01]} 41. Kg1 {[%emt 0:34:52]} Qd4+ {[%emt 0:09:00]} 42. Kf1 {[%emt 0:00:00]} Qd1+ {[%emt 0:01:30]} 43. Kf2 {[%emt 0:00:00]} Qd4+ {[%emt 0:00:02]} 44. Kf3 {[%emt 0:00:00][%cal Oa8h8]} Qd5+ {[%emt 0:02:15]} 45. Ke3 {[%emt 0:00:00] Threatening mate with Qd3+.} Qe5+ {[%emt 0:02:42]} 46. Kd2 {[%emt 0:00:00]} Qf4+ {[%emt 0:00:25]} 47. Kc2 {[%emt 0:00:00] Intending Qd3+ and mate.} Qf2+ {[%emt 0:00:38]} 48. Kc3 {[%emt 0:00:00]} Qe1+ {[%emt 0:00:03]} 49. Kb3 {[%emt 0:00:00] Qd3+ would kill now.} Qe3+ {[%emt 0:01:00]} 50. Kc2 {[%emt 0:00:00]} Qf2+ {[%emt 0:00:08]} 51. Kc3 {[%emt 0:00:00] White wants to mate with Qd3+.} Qe1+ {[%emt 0:00:05]} 52. Kc2 {[%emt 0:00:00] Blacks defense is rewarded with a draw.  Weighted Error Value: White=0.22 (precise) /Black=0.27 (precise)} 1/2-1/2

[Event "Icelandic Championship 2022"]
[Site "Selfoss"]
[Date "2022.04.24"]
[Round "4.2"]
[White "Thorhallsson, Throstur"]
[Black "Stefansson, Vignir Vatnar"]
[Result "0-1"]
[ECO "B33"]
[WhiteElo "2422"]
[BlackElo "2501"]
[Annotator "TA"]
[PlyCount "144"]
[EventDate "2022.04.21"]
[EventType "tourn"]
[EventCountry "ISL"]
[SourceTitle "playchess.com"]
[Source "ChessBase"]
[SourceQuality "1"]
[TimeControl "40/5400+30:1800+30"]

{[%evp 9,144,22,66,36,62,59,68,45,91,85,94,75,100,84,88,75,79,85,84,86,82,65,74,38,40,34,40,33,35,8,25,8,20,0,0,0,0,0,0,0,2,10,2,11,10,4,60,31,31,10,18,8,8,14,42,21,22,22,41,28,29,29,27,33,33,21,19,30,15,0,8,0,18,0,17,14,14,14,14,11,13,11,13,14,23,0,0,0,0,0,0,0,0,0,0,0,0,-8,-8,-8,-13,-16,-9,-11,-27,-75,0,0,0,0,0,0,0,0,0,-679,-676,-614,-545,-475,-547,-457,-483,-4690,-3219,-1342,-1514,-29971,-29972,-29974,-29975,-29974,-29975,-29973,-29974,-29938,-5114]} 1. e4 {[%emt 0:00:03]} c5 {[%emt 0:02:04]} 2. Nf3 {[%emt 0:00:28]} Nc6 {[%emt 0:00:45]} 3. d4 {[%emt 0:00:36]} cxd4 {[%emt 0:00:07]} 4. Nxd4 {[%emt 0:00:06]} Nf6 {[%emt 0:00:09]} 5. Nc3 {[%emt 0:00:25]} h5 {[%emt 0:01:35]} 6. Nb3 {[%emt 0:04:56] [#] B33: Sicilian: Pelikan and Sveshnikov Variations.} e5 $146 {[%emt 0:05:01]} ({Predecessor:} 6... e6 7. Bd3 Qc7 8. Qe2 a6 9. a4 b6 10. f4 d6 11. O-O Bb7 12. Bd2 Be7 13. Rae1 {1-0 (81) Smirnov,A (2597)-Idani,P (2588) Chess.com INT 2020}) 7. Bg5 {[%emt 0:04:49]} Be7 {[%emt 0:04:34]} 8. Qd2 {[%emt 0:12:52] White is slightly better.} d6 {[%emt 0:01:07]} (8... Bb4 $14 {is more appropriate.}) 9. O-O-O $16 {[%emt 0:01:01]} Be6 {[%emt 0:07:29]} 10. Kb1 {[%emt 0:06:12]} a6 {[%emt 0:01:58]} 11. Be2 {[%emt 0:04:04]} Rc8 {[%emt 0:03:18]} 12. Bxf6 {[%emt 0:03:10]} (12. h4 {keeps more tension.} Bxb3 13. axb3 Nd4 14. f3) 12... Bxf6 {[%emt 0:14:48]} 13. Qxd6 {[%emt 0:01:56]} Qxd6 {[%emt 0:02:50]} 14. Rxd6 {[%emt 0:00:15]} Ke7 {[%emt 0:01:18]} 15. Rd2 {[%emt 0:04:16]} Nd4 {[%emt 0:00:55]} 16. Bd3 {[%emt 0:14:04]} Rhd8 {[%emt 0:01:14]} 17. Nxd4 {[%emt 0:00:48]} Rxd4 {[%emt 0:00:40]} 18. Ne2 {[%emt 0:00:33]} Rd6 {[%emt 0:01:21]} 19. f3 {[%emt 0:08:46]} h4 {[%emt 0:04:09]} 20. Rdd1 {[%emt 0:02:13]} b5 {[%emt 0:03:43]} 21. Nc1 {[%emt 0:04:11]} Bg5 {[%emt 0:01:26]} 22. Be2 {[%emt 0:02:03]} Rdc6 {[%emt 0:01:15]} 23. Bd3 {[%emt 0:01:14]} a5 {[%emt 0:02:18]} 24. Rhe1 {[%emt 0:04:26]} Bf4 {[%emt 0:01:56]} 25. g3 {[%emt 0:04:44]} hxg3 {[%emt 0:00:52]} 26. hxg3 {[%emt 0:00:02]} Bxg3 {[%emt 0:00:07] This bishop pair is nice.} 27. Rg1 {[%emt 0:00:10]} Bf2 {[%emt 0:00:33]} ({Black should try} 27... Bf4 $11) 28. Rxg7 {[%emt 0:00:30]} (28. Rg2 $5 {[%cal Rg2f2]} Be3 29. Bxb5 $14) 28... b4 {[%emt 0:00:10]} 29. Rg2 {[%emt 0:01:38]} Be3 {[%emt 0:03:26]} 30. Bb5 {[%emt 0:01:57]} Rb6 {[%emt 0:03:19]} 31. Ba4 {[%emt 0:00:27]} Rbb8 {[%emt 0:00:33]} 32. Bb3 {[%emt 0:00:51]} Rg8 {[%emt 0:03:09]} 33. Re2 {[%emt 0:00:10]} Bb6 {[%emt 0:09:25]} 34. Nd3 {[%emt 0:02:38]} Bd4 {[%emt 0:01:12]} 35. Bxe6 {[%emt 0:01:00]} Kxe6 {[%emt 0:00:09]} 36. f4 {[%emt 0:00:25]} f6 {[%emt 0:00:05]} 37. Rh2 {[%emt 0:05:17]} Rh8 {[%emt 0:00:12]} 38. f5+ {[%emt 0:01:47]} Kd6 {[%emt 0:00:47]} 39. Re2 {[%emt 0:03:46]} Rh4 {[%emt 0:00:33]} 40. Kc1 {[%emt 0:00:27]} Rg8 {[%emt 0:01:48]} 41. Kd2 {[%emt 0:02:07]} Rgg4 {[%emt 0:03:55]} 42. c3 {[%emt 0:01:48]} bxc3+ {[%emt 0:00:08]} 43. bxc3 {[%emt 0:00:02]} Ba7 {[%emt 0:00:06]} 44. Kc2 {[%emt 0:01:36] [#] Strongly threatening Nf2+.} Kc6 {[%emt 0:00:25]} 45. Rde1 {[%emt 0:00:31]} Rg3 {[%emt 0:00:12]} 46. Nb2 {[%emt 0:06:06]} Rhh3 {[%emt 0:00:29]} 47. Nd1 {[%emt 0:00:22]} a4 {[%emt 0:00:55]} 48. Rd2 {[%emt 0:01:57]} Bc5 {[%emt 0:04:41]} 49. Ree2 {[%emt 0:01:04]} Kb5 {[%emt 0:04:46]} 50. Rh2 {[%emt 0:04:27]} Rxh2 {[%emt 0:00:13]} 51. Rxh2 $11 {[%emt 0:00:01][%mdl 4096] Endgame KRB-KRN} a3 {[%emt 0:00:36]} 52. Kb3 {[%emt 0:01:56]} Rd3 {[%emt 0:02:10]} 53. Rh1 {[%emt 0:00:22]} Rd2 {[%emt 0:01:16]} 54. Re1 {[%emt 0:02:46]} Rh2 {[%emt 0:00:14]} 55. Rf1 $1 {[%emt 0:01:02]} Re2 {[%emt 0:00:30]} 56. Rh1 $1 {[%emt 0:05:48]} ({Reject} 56. c4+ Ka5 57. Rh1 Rd2 $17) 56... Rxe4 {[%emt 0:02:11]} 57. Rh6 {[%emt 0:03:34] [#]} (57. c4+ $1 $11 {deserves consideration.} Ka5 58. Nc3) 57... Re1 {[%emt 0:02:31] &Nero is more active.} (57... Re2 $1 $17 {[%cal Re2d2] White must now prevent ...Rd2.} 58. c4+ Ka5) 58. c4+ {[%emt 0:00:36]} Ka5 {[%emt 0:00:06]} 59. Nc3 {[%emt 0:00:41]} Re3 {[%emt 0:15:38]} 60. Kc2 {[%emt 0:00:12]} (60. Rxf6 Bd4 61. Kxa3 Rxc3+ 62. Kb2 Kb4 $19) 60... Bb4 {[%emt 0:01:09]} 61. Nd5 {[%emt 0:01:36]} Re2+ {[%emt 0:00:05]} 62. Kb1 $2 {[%emt 0:00:21][%mdl 8192]} (62. Kd3 $11 Rxa2 63. Rh8) 62... Rb2+ $19 {[%emt 0:01:51]} 63. Ka1 {[%emt 0:00:05]} Bc5 {[%emt 0:02:22]} 64. Rh8 {[%emt 0:01:13] Intending Ra8+ and mate.} Ka6 {[%emt 0:00:19] ...Bd4 is the strong threat.} 65. Nc7+ {[%emt 0:01:09]} Kb7 {[%emt 0:00:47]} 66. Nb5 {[%emt 0:01:28]} (66. Ne6 $142 Be3 67. Rh7+ Kb6 68. Rh1) 66... Rc2 {[%emt 0:03:07][%cal Rc2c1]} 67. Kb1 {[%emt 0:00:26] Against Rc1+} Rxc4 {[%emt 0:00:10] ( -> ...Kc6)} 68. Rh3 {[%emt 0:00:09]} Rb4+ {[%emt 0:01:20] Black mates.} 69. Rb3 {[%emt 0:00:07]} Rxb3+ {[%emt 0:00:18]} 70. axb3 {[%emt 0:00:01]} Bb4 {[%emt 0:00:06]} 71. Ka2 {[%emt 0:00:19]} e4 {[%emt 0:00:11]} 72. Nd4 {[%emt 0:00:09]} e3 {[%emt 0:00:05] Weighted Error Value: White=0.08 (flawless) /Black=0.09 (flawless)} (72... Kb6 $142 73. Nc2 Kc5 74. Kb1 Bd2 75. Nxa3 e3 76. Kc2 Bb4 77. Kd3 Bxa3 78. Kxe3 Kd5 79. Kf4 Bc5 80. Kf3 Ke5 81. Ke2 Kxf5 82. Kd2 Bb4+ 83. Ke3 Be7 84. Kd3 Bd6 85. Kd4 Kf4 86. Kd5 Bf8 87. Kd4 f5 88. Kd3 Ke5 89. Ke3 f4+ 90. Kd3 Kd5 91. b4 Bxb4 92. Ke2 Ke4 93. Kf2 f3 94. Kg3 Bc5 95. Kh2 f2 96. Kg2 Ke3 97. Kf1 Be7 98. Kg2 Ke2 99. Kh2 f1=Q 100. Kg3 Ke3 101. Kh2 Bd6#) 0-1

[Event "Icelandic Championship 2022"]
[Site "Selfoss"]
[Date "2022.04.24"]
[Round "4.3"]
[White "Stefansson, Hannes"]
[Black "Mai, Alexander Oliver"]
[Result "1-0"]
[ECO "B51"]
[WhiteElo "2525"]
[BlackElo "2177"]
[Annotator "TA"]
[PlyCount "165"]
[EventDate "2022.04.21"]
[EventType "tourn"]
[EventCountry "ISL"]
[SourceTitle "playchess.com"]
[Source "ChessBase"]
[SourceQuality "1"]
[TimeControl "40/5400+30:1800+30"]

{[%evp 9,165,14,27,25,14,16,21,33,22,5,15,8,5,26,29,17,37,16,19,41,22,37,35,26,38,27,42,21,16,0,20,23,67,20,85,74,93,43,57,50,45,0,71,5,67,-53,64,68,55,81,74,0,79,42,178,174,178,187,158,141,132,122,286,275,277,73,108,-49,-51,-41,-35,-37,0,-22,-2,-6,0,0,-4,-9,0,0,8,0,0,-48,14,0,12,0,0,0,0,-75,-91,-108,-95,-118,0,-106,-41,-162,-52,-172,-168,-249,-167,-183,-155,-194,-199,-213,-159,-151,-157,-158,-154,-194,-127,-135,-134,-133,-98,-95,0,0,0,0,0,0,0,0,0,0,8,8,8,0,0,0,2,0,271,250,820,796,29978,29979,29980,29981,29978,29982,29985,29986,29988,29989,29990,29991]} 1. e4 {[%emt 0:00:06]} c5 {[%emt 0:00:07]} 2. Nf3 {[%emt 0:00:09]} d6 {[%emt 0:00:05]} 3. Bb5+ {[%emt 0:00:11]} Nd7 {[%emt 0:01:07]} 4. Ba4 {[%emt 0:00:13]} Ngf6 {[%emt 0:01:56]} 5. O-O {[%emt 0:00:13]} a6 {[%emt 0:05:27]} 6. c4 {[%emt 0:00:36]} e6 {[%emt 0:02:11]} 7. Nc3 {[%emt 0:00:46]} Be7 {[%emt 0:00:36]} 8. d4 {[%emt 0:00:42]} cxd4 {[%emt 0:00:12]} 9. Nxd4 {[%emt 0:00:10]} O-O {[%emt 0:01:19]} 10. Kh1 {[%emt 0:01:19]} Qc7 {[%emt 0:01:28]} 11. Qe2 {[%emt 0:00:53]} Ne5 {[%emt 0:07:11]} 12. Bb3 $1 {[%emt 0:00:42]} Nc6 {[%emt 0:00:47]} 13. Nxc6 {[%emt 0:05:48]} bxc6 {[%emt 0:01:15]} 14. f4 {[%emt 0:01:08]} Nd7 {[%emt 0:02:16]} 15. Bc2 {[%emt 0:01:18]} Bb7 {[%emt 0:02:41]} 16. Bd2 {[%emt 0:04:54]} Rfe8 {[%emt 0:01:00]} 17. Rae1 {[%emt 0:06:45]} Bf8 {[%emt 0:00:59]} 18. Rf3 {[%emt 0:04:50]} g6 {[%emt 0:05:14]} 19. Rh3 {[%emt 0:03:02]} Bg7 {[%emt 0:04:07]} 20. Qf2 {[%emt 0:05:13]} Nf6 {[%emt 0:20:36]} 21. Bd1 {[%emt 0:05:08]} (21. c5 $14) 21... d5 {[%emt 0:10:36]} (21... c5 $11) 22. e5 $16 {[%emt 0:01:10]} Nd7 {[%emt 0:00:15]} 23. Qh4 {[%emt 0:02:52]} ({White should try} 23. c5 $16) 23... Nf8 $14 {[%emt 0:00:29]} 24. Na4 {[%emt 0:03:28]} c5 {[%emt 0:02:10]} 25. Bf3 {[%emt 0:03:16]} Red8 {[%emt 0:02:48]} (25... dxc4 $11 {keeps the balance.} 26. Be3 Bxf3 27. Rxf3 (27. gxf3 Rab8 $15) 27... Nd7) 26. Be3 {[%emt 0:04:13]} (26. cxd5 $16 {Black must now prevent d6.} exd5 27. f5 Bxe5 28. Nxc5 $1 {[%mdl 512]} Qxc5 29. Rxe5) 26... Bc6 {[%emt 0:03:57] [#]} (26... dxc4 $11 27. Nxc5 Bxf3 28. Rxf3 Qc6) 27. Bd1 {[%emt 0:04:05]} (27. Nxc5 $6 d4 28. Ne4 (28. Bxc6 $2 Qxc6 29. Bc1 Qxc5 $19) 28... Bxe4 29. Bxe4 dxe3 30. Bxa8 Rxa8 $15) ({White has to play} 27. cxd5 $1 $14 exd5 28. Bxc5 (28. Nxc5 d4 $17)) 27... Be8 {[%emt 0:09:55]} (27... dxc4 $15 28. Nxc5 Qa5) 28. cxd5 $14 {[%emt 0:08:50]} (28. Nxc5 $2 d4 29. Bf3 Qxc5 $19) (28. Bxc5 Bxa4 29. Bxf8 Kxf8 $15) 28... Bxa4 {[%emt 0:03:27]} 29. Bxa4 {[%emt 0:00:23]} exd5 {[%emt 0:00:49]} 30. Bc2 {[%emt 0:06:45]} (30. Bd2 $16) 30... Rab8 {[%emt 0:01:12]} (30... d4 $1 $11 31. Bg1 c4) 31. b3 $16 {[%emt 0:01:30]} Qa5 {[%emt 0:00:47]} (31... c4 $14) 32. f5 $1 $18 {[%emt 0:02:06]} Rb4 {[%emt 0:03:09]} 33. Qf2 $1 {[%emt 0:01:03]} Bxe5 {[%emt 0:02:49]} 34. Bd2 {[%emt 0:03:33]} (34. Bxc5 $6 Rf4 35. Qe3 Nd7 $14) 34... Bd4 {[%emt 0:00:04]} 35. Qh4 {[%emt 0:01:56]} Rdb8 $2 {[%emt 0:02:04]} (35... Qb6 $16) 36. fxg6 $18 {[%emt 0:07:22]} (36. Bxb4 $6 Qxb4 37. Rf3 Bc3 38. Qxb4 Bxb4 $16) 36... hxg6 {[%emt 0:00:06]} 37. a4 $2 {[%emt 0:05:44]} (37. Bxb4 $6 Qxb4 38. Rf3 Bg7 39. Qxb4 (39. Qe7 Rb7 $16) 39... Rxb4 $18) (37. a3 $18 {has better winning chances.} Qxa3 38. Bxg6 $1 {[%mdl 512]} fxg6 39. Qg5 Qxb3 40. Rxb3 Rxb3 41. Qxd5+ Kh8 42. Qe4) 37... Qb6 {[%emt 0:01:27][%cal Od4c3]} 38. Qe7 $2 {[%emt 0:01:29]} (38. Bxb4 $16 Qxb4 39. Rf1) 38... Bf6 $15 {[%emt 0:00:55]} 39. Qe2 {[%emt 0:00:20]} Rh4 {[%emt 0:01:38]} 40. Rf3 {[%emt 0:00:08]} Bd4 {[%emt 0:00:42] Prevents Qf2.} 41. Bf4 {[%emt 0:33:27]} ({Much worse is} 41. Qe7 Rh7 $17) (41. Rxf7 $5 {[%cal Re2f3]} Qd6 42. g3 Qxg3 43. Ref1 $11) 41... Rc8 {[%emt 0:04:29]} 42. Bd3 $1 {[%emt 0:00:00]} a5 {[%emt 0:02:45]} (42... Qxb3 $2 43. Bg3 Qxa4 44. Bxh4 $18) 43. Bg3 {[%emt 0:00:00]} Rh7 {[%emt 0:00:55]} 44. Bb5 {[%emt 0:00:00]} Qa7 {[%emt 0:01:45]} 45. Qc2 {[%emt 0:00:00]} f5 {[%emt 0:10:35]} 46. Qe2 {[%emt 0:00:00]} Qf7 {[%emt 0:01:24]} 47. Rd3 {[%emt 0:00:00]} (47. Bf2 $11) 47... Qf6 {[%emt 0:03:25]} (47... Nd7 $15) 48. h3 {[%emt 0:00:00]} Rd8 {[%emt 0:01:44]} 49. Qd2 {[%emt 0:00:00]} Ra8 {[%emt 0:01:05]} 50. Rxd4 {[%emt 0:00:00]} Qxd4 {[%emt 0:00:49]} 51. Qc2 {[%emt 0:00:00]} (51. Qg5 $11) 51... Rc8 $17 {[%emt 0:01:23]} 52. Be5 {[%emt 0:00:00]} Qh4 $1 {[%emt 0:00:26]} 53. Qd2 {[%emt 0:00:00]} Rd8 {[%emt 0:01:05]} ({Better is} 53... Ne6 $17 {Threatens to win with ...Nd4.} 54. Re3 Rd8 55. Qxa5 f4) 54. Qxa5 {[%emt 0:00:00] [#]} (54. Bf4 $11 Re7 55. Rxe7 Qxe7 56. Bg5) 54... Ne6 {[%emt 0:00:54]} (54... Re7 $1 $17 {[%cal Of5f4][%mdl 512] Strongly threatening ...f4!} 55. Qc3 (55. Kh2 f4) 55... Re6) 55. Bc6 {[%emt 0:00:00] [#]} (55. Re2 $15 Nd4 56. Bxd4 cxd4 57. Qb6) 55... f4 {[%emt 0:02:43]} (55... Ra7 $3 $19 {[%mdl 512]} 56. Qd2 Kh7) 56. Rf1 {[%emt 0:00:00]} (56. Bf6 $1 $15 Qxf6 57. Rxe6 Qxe6 58. Qxd8+ Kg7 59. Bxd5) 56... Qg5 {[%emt 0:00:41]} 57. Qe1 {[%emt 0:00:00]} (57. Bb2 $142) 57... Qf5 {[%emt 0:00:55]} 58. Bb5 {[%emt 0:00:00]} g5 {[%emt 0:01:24]} 59. Qe2 {[%emt 0:00:00]} Qe4 {[%emt 0:00:38]} 60. Kg1 {[%emt 0:01:11]} Qxe2 {[%emt 0:00:31]} 61. Bxe2 {[%emt 0:00:05]} Rb7 {[%emt 0:00:37]} 62. Bb5 {[%emt 0:00:06]} Kf7 {[%emt 0:00:49]} 63. Rd1 {[%emt 0:00:07]} Rb6 {[%emt 0:00:17]} ({Black should play} 63... Re7 $19 {And now ...Nc7 would win.} 64. Bc3 Nc7) 64. Kf2 {[%emt 0:00:26] [#]} Ke7 $1 {[%emt 0:00:15]} 65. Re1 {[%emt 0:00:13]} Ra8 {[%emt 0:00:41]} 66. Kf3 {[%emt 0:00:56]} Rxb5 {[%emt 0:00:40]} (66... Kf7 $17) 67. axb5 $11 {[%emt 0:00:07]} Ra5 {[%emt 0:00:03]} 68. Kg4 {[%emt 0:00:08]} Rxb5 {[%emt 0:00:25]} 69. Kf5 {[%emt 0:00:05]} Kf7 {[%emt 0:01:10][%cal Of4f3]} 70. Ra1 {[%emt 0:00:28]} Rb7 {[%emt 0:00:29] Inhibits Ra7.} 71. Ra6 {[%emt 0:00:30]} Nd4+ {[%emt 0:00:27]} 72. Kxg5 {[%emt 0:02:39]} Nxb3 {[%emt 0:00:12]} 73. Rh6 {[%emt 0:00:28] aiming for Rh7+.} Rb4 {[%emt 0:00:27]} 74. Rf6+ {[%emt 0:01:34]} Ke7 {[%emt 0:00:09]} 75. h4 {[%emt 0:00:14]} d4 $2 {[%emt 0:00:32][%mdl 8192]} (75... Nd2 $11 {and Black has nothing to worry.} 76. Kf5 (76. Bd6+ Kd7 $17) 76... f3 77. gxf3 Rxh4 78. Bd6+ Kd7) 76. h5 $18 {[%emt 0:00:40] Hoping for h6.} (76. Bxf4 d3 77. h5 d2 78. Bxd2 Nxd2 $15) 76... d3 $2 {[%emt 0:00:40]} (76... f3 77. Rxf3 (77. gxf3 d3 $11) 77... Nd2) 77. h6 $18 {[%emt 0:00:07] Threatening mate with h7.} Re4 {[%emt 0:01:06]} 78. Bd6+ {[%emt 0:01:34]} Kd7 {[%emt 0:00:12]} 79. h7 {[%emt 0:00:12]} Re8 {[%emt 0:00:30]} 80. Bf8 {[%emt 0:00:39]} Re5+ {[%emt 0:00:37]} 81. Kg6 {[%emt 0:00:33]} d2 {[%emt 0:00:24]} 82. Rd6+ {[%emt 0:00:16]} Kc7 {[%emt 0:00:07]} 83. h8=Q {[%emt 0:00:07]} 1-0